bitfinex-derivatives/quotes_BTCF0:USTF0_20241231
["timestamp","ask_amount","ask_price","bid_price","bid_amount"]
[1735604240576,0.053954,92842.0,92835.0,0.002]
[1735604241269,0.053954,92842.0,92835.0,0.003]
[1735604241878,0.053955,92841.0,92835.0,0.003]
[1735604242081,0.053956,92840.0,92835.0,0.003]
[1735604243087,0.053956,92840.0,92835.0,0.001]
[1735604243281,0.057956,92840.0,92835.0,0.001]
[1735604243581,0.053958,92837.0,92835.0,0.001]
[1735604244286,0.3608,92836.0,92835.0,0.001]
[1735604244983,0.3608,92836.0,92820.0,0.47243145]
[1735604245180,0.05396,92832.0,92821.0,0.053966]
[1735604245478,0.05396,92832.0,92822.0,0.0644]
[1735604245682,0.05396,92832.0,92822.0,0.1318]
[1735604246179,0.053961,92831.0,92822.0,0.1318]
[1735604246381,0.053965,92825.0,92820.0,0.3608]
[1735604246573,0.3608,92836.0,92812.0,0.19387012]
[1735604246574,0.053971,92813.0,92812.0,0.19387012]
[1735604246771,0.414771,92813.0,92812.0,0.04905177]
[1735604246973,0.414771,92813.0,92805.0,0.38524522]
[1735604246974,0.053975,92806.0,92805.0,0.35190094]
[1735604247183,0.053975,92806.0,92804.0,0.35190094]
[1735604248388,0.053975,92806.0,92804.0,0.35390094]
[1735604248586,0.053975,92806.0,92804.0,0.002]
[1735604248974,0.06847186,92806.0,92804.0,0.002]
[1735604251782,0.053977,92803.0,92800.0,0.1]
[1735604253390,0.055977,92803.0,92800.0,0.1]
[1735604253690,0.055977,92803.0,92801.0,1.5]
[1735604255284,0.055977,92803.0,92802.0,6.947e-05]
[1735604255788,0.07001148,92803.0,92802.0,6.947e-05]
[1735604256494,0.07101148,92803.0,92802.0,6.947e-05]
[1735604256694,0.07201148,92803.0,92802.0,6.947e-05]
[1735604256993,0.43281148,92803.0,92802.0,6.947e-05]
[1735604257293,0.11163145,92794.0,92783.0,0.25796524]
[1735604257491,0.053988,92784.0,92783.0,0.25796524]
[1735604258480,0.053988,92784.0,92763.0,0.0652]
[1735604258681,0.3608,92776.0,92763.0,0.0652]
[1735604258888,0.3608,92776.0,92756.0,0.25852524]
[1735604258889,0.054003,92759.0,92756.0,0.25852524]
[1735604259087,0.054003,92759.0,92756.0,0.25796524]
[1735604259581,0.11163145,92766.0,92756.0,0.25796524]
[1735604259582,0.054004,92757.0,92756.0,0.25796524]
[1735604259991,0.054004,92757.0,92753.0,0.3608]
[1735604260898,0.055004,92757.0,92756.0,0.005]
[1735604261700,0.055004,92757.0,92753.0,0.3668]
[1735604262196,0.054004,92756.0,92753.0,0.3668]
[1735604263801,0.054004,92756.0,92753.0,0.3608]
[1735604264098,0.054004,92756.0,92754.0,1.5]
[1735604267001,0.054004,92756.0,92754.0,1.501]
[1735604268489,0.3608,92767.0,92754.0,1.501]
[1735604268896,0.054004,92756.0,92754.0,1.501]
[1735604269292,0.054004,92756.0,92754.0,0.001]
[1735604269895,0.3608,92767.0,92753.0,1.86144]
[1735604270092,0.3608,92767.0,92754.0,0.001]
[1735604270300,0.054005,92755.0,92754.0,0.001]
[1735604270698,0.054005,92755.0,92754.0,1.501]
[1735604270898,0.054005,92755.0,92754.0,1.5]
[1735604271800,0.056005,92755.0,92753.0,0.3608]
[1735604272123,0.056005,92755.0,92754.0,1.5]
[1735604272499,0.056005,92755.0,92753.0,0.3608]
[1735604274001,0.001,92755.0,92753.0,0.414806]
[1735604275006,0.001,92755.0,92754.0,0.054005]
[1735604276105,0.001,92755.0,92753.0,0.3608]
[1735604276410,0.055005,92755.0,92753.0,0.3608]
[1735604277606,0.054005,92755.0,92753.0,0.3608]
[1735604277924,0.054009,92748.0,92747.0,0.25796524]
[1735604278299,0.067,92754.0,92745.0,0.3608]
[1735604278506,0.05401,92746.0,92745.0,0.3608]
[1735604280207,0.054007,92752.0,92745.0,0.3608]
[1735604280414,0.054008,92751.0,92746.0,0.05401]
[1735604280814,0.054009,92749.0,92745.0,0.3608]
[1735604281119,0.05401,92746.0,92745.0,0.3618]
[1735604282818,0.05401,92746.0,92745.0,0.3608]
[1735604283712,0.05401,92746.0,92745.0,0.3618]
[1735604285916,0.37401165,92756.0,92745.0,0.3618]
[1735604286127,0.054007,92753.0,92745.0,0.3618]
[1735604287216,0.054007,92752.0,92747.0,0.32215747]
[1735604288024,0.054009,92749.0,92747.0,0.32215747]
[1735604288227,0.054005,92755.0,92747.0,0.32215747]
[1735604288524,0.0757084,92763.0,92749.0,0.32215747]
[1735604288525,0.054003,92759.0,92749.0,0.32215747]
[1735604288724,0.054008,92750.0,92749.0,0.32215747]
[1735604289925,0.001,92752.0,92745.0,0.3608]
[1735604289926,0.054009,92749.0,92747.0,0.32215747]
[1735604290527,0.054009,92749.0,92747.0,0.31965747]
[1735604292415,0.05401,92746.0,92745.0,0.3608]
[1735604293623,0.05701,92746.0,92745.0,0.3608]
[1735604294130,0.05701,92746.0,92737.0,0.3608]
[1735604294131,0.004,92746.0,92737.0,0.3608]
[1735604294326,0.054015,92738.0,92737.0,0.3608]
[1735604297131,0.002,92738.0,92737.0,0.3608]
[1735604297332,0.002,92738.0,92737.0,0.423]
[1735604297834,0.002,92738.0,92737.0,1.923]
[1735604299330,0.002,92738.0,92737.0,0.424]
[1735604300535,0.054015,92739.0,92737.0,0.424]
[1735604301522,0.054015,92739.0,92737.0,0.3618]
[1735604301834,0.0642,92738.0,92737.0,0.3618]
[1735604302029,0.0642,92738.0,92730.0,1.5]
[1735604302230,0.054015,92738.0,92737.0,0.25978704]
[1735604302934,0.001,92738.0,92737.0,0.25878704]
[1735604303136,0.001,92738.0,92737.0,0.31280204]
[1735604303324,0.054004,92758.0,92746.0,0.05401]
[1735604303523,0.054004,92758.0,92749.0,0.3608]
[1735604303728,0.16134796,92751.0,92749.0,0.3608]
[1735604304836,0.06729742,92758.0,92749.0,0.61958704]
[1735604305639,0.004,92750.0,92749.0,0.61958704]
[1735604306037,0.001,92750.0,92749.0,0.61958704]
[1735604306425,0.054006,92754.0,92749.0,0.61958704]
[1735604306833,0.004,92750.0,92749.0,0.61958704]
[1735604307631,0.004,92750.0,92749.0,0.3608]
[1735604308232,0.058008,92750.0,92749.0,0.3608]
[1735604308427,0.058008,92750.0,92746.0,0.25878704]
[1735604308640,0.059008,92750.0,92746.0,0.25878704]
[1735604308841,0.054009,92748.0,92746.0,0.25878704]
[1735604309145,0.054009,92748.0,92745.0,0.61958704]
[1735604309931,0.056009,92748.0,92745.0,0.61958704]
[1735604310329,0.056009,92748.0,92745.0,0.3608]
[1735604310838,0.056009,92748.0,92744.0,0.25878704]
[1735604311745,0.056009,92748.0,92741.0,0.32038704]
[1735604312336,0.05401,92747.0,92741.0,0.32038704]
[1735604313142,0.02397994,92750.0,92744.0,0.3608]
[1735604313941,0.05401,92747.0,92744.0,0.3608]
[1735604315146,0.054011,92745.0,92742.0,0.25878704]
[1735604315845,0.054011,92745.0,92740.0,0.11163145]
[1735604315846,0.054012,92744.0,92740.0,0.37041849]
[1735604316448,0.054013,92742.0,92740.0,0.25878704]
[1735604316750,0.001,92745.0,92740.0,0.25878704]
[1735604317137,0.001,92745.0,92739.0,0.25878704]
[1735604318337,0.054011,92745.0,92742.0,0.25878704]
[1735604319648,0.054011,92745.0,92743.0,0.25878704]
[1735604321748,0.055011,92745.0,92743.0,0.25878704]
[1735604322141,0.054012,92744.0,92742.0,0.25878704]
[1735604323244,0.054012,92744.0,92743.0,0.25878704]
[1735604323552,0.055012,92744.0,92743.0,0.25878704]
[1735604324750,0.055012,92744.0,92742.0,0.26378704]
[1735604324949,0.054012,92744.0,92742.0,0.26178704]
[1735604325149,0.055012,92744.0,92742.0,0.25878704]
[1735604325641,0.057012,92744.0,92742.0,0.25878704]
[1735604325842,0.057012,92744.0,92741.0,0.25878704]
[1735604326047,0.057012,92744.0,92742.0,1.5]
[1735604326247,0.056012,92744.0,92742.0,1.5]
[1735604326744,0.002,92744.0,92742.0,1.5]
[1735604326944,0.16134796,92756.0,92742.0,1.5]
[1735604327240,0.16134796,92757.0,92755.0,0.414805]
[1735604327450,0.16134796,92757.0,92756.0,0.1238]
[1735604328545,0.19383745,92767.0,92756.0,0.1238]
[1735604328849,0.19383745,92767.0,92766.0,0.414798]
[1735604329047,0.0129523,92768.0,92766.0,0.414798]
[1735604329248,0.053993,92776.0,92766.0,0.414798]
[1735604329649,0.053997,92769.0,92766.0,0.3608]
[1735604329947,0.053996,92771.0,92766.0,0.3608]
[1735604330146,0.002,92767.0,92766.0,0.3608]
[1735604332253,0.005,92767.0,92766.0,0.414798]
[1735604332748,0.01321234,92779.0,92778.0,0.053991]
[1735604332956,0.053985,92790.0,92778.0,0.414791]
[1735604333151,0.20977562,92789.0,92779.0,1.5]
[1735604333356,0.20977562,92789.0,92779.0,1.61163145]
[1735604333853,0.053989,92782.0,92778.0,0.3608]
[1735604334348,0.01593817,92789.0,92779.0,1.5]
[1735604334547,0.05399,92781.0,92778.0,0.3618]
[1735604334949,0.05399,92781.0,92779.0,0.001]
[1735604335947,0.0623,92780.0,92778.0,0.3608]
[1735604336141,0.1262,92780.0,92767.0,0.25872542]
[1735604336350,0.053994,92774.0,92767.0,0.25872542]
[1735604337658,0.053994,92774.0,92766.0,0.3608]
[1735604337856,0.053995,92773.0,92766.0,0.3608]
[1735604338860,0.007,92774.0,92766.0,0.3608]
[1735604338861,0.053997,92768.0,92766.0,0.3608]
[1735604339157,0.053997,92768.0,92756.0,0.1238]
[1735604339158,0.053997,92768.0,92760.0,0.25872542]
[1735604339357,0.001,92773.0,92760.0,0.25872542]
[1735604339561,0.053998,92767.0,92760.0,0.25872542]
[1735604340459,0.053999,92766.0,92756.0,0.1238]
[1735604340653,0.005,92773.0,92756.0,0.1238]
[1735604340852,0.005,92773.0,92754.0,0.3608]
[1735604340853,0.47243145,92770.0,92754.0,0.3608]
[1735604341055,0.3608,92761.0,92753.0,0.25872542]
[1735604341249,0.054005,92754.0,92753.0,0.25872542]
[1735604341956,0.054005,92754.0,92749.0,0.3608]
[1735604341957,0.054008,92750.0,92749.0,0.3608]
[1735604344665,0.057008,92750.0,92749.0,0.3608]
[1735604344857,0.057008,92750.0,92745.0,0.3608]
[1735604345058,0.054009,92749.0,92745.0,0.3608]
[1735604345963,0.05401,92747.0,92745.0,0.3608]
[1735604346854,0.02030906,92750.0,92741.0,0.0006]
[1735604346855,0.054012,92742.0,92741.0,0.0006]
[1735604347056,0.054015,92738.0,92737.0,0.3608]
[1735604348162,0.0609,92740.0,92735.0,0.25872542]
[1735604348466,0.054016,92736.0,92735.0,0.25872542]
[1735604348656,0.07719599,92740.0,92725.0,0.3608]
[1735604348856,0.054019,92731.0,92725.0,0.3608]
[1735604349058,0.054019,92731.0,92720.0,0.37035687]
[1735604349663,0.07719599,92740.0,92724.0,0.3608]
[1735604349858,0.054023,92724.0,92719.0,0.19368842]
[1735604350053,0.3608,92734.0,92719.0,0.19368842]
[1735604350259,0.054025,92721.0,92719.0,0.19368842]
[1735604351368,0.054025,92721.0,92700.0,0.53919387]
[1735604351369,0.05403,92712.0,92710.0,0.19368842]
[1735604352666,0.23503145,92720.0,92702.0,0.3608]
[1735604352667,0.054032,92709.0,92702.0,0.3608]
[1735604353065,0.054033,92708.0,92702.0,0.3608]
[1735604353553,0.054033,92706.0,92702.0,0.3608]
[1735604353865,0.054035,92705.0,92702.0,0.3608]
[1735604354269,0.001,92708.0,92702.0,0.3688]
[1735604354866,0.11163145,92740.0,92706.0,0.3608]
[1735604355174,0.054025,92721.0,92707.0,0.1259]
[1735604355360,0.054028,92716.0,92707.0,0.1259]
[1735604355559,0.054023,92724.0,92715.0,0.3608]
[1735604355860,0.054023,92724.0,92716.0,1.5]
[1735604356358,0.054024,92722.0,92716.0,1.5]
[1735604357060,0.054025,92721.0,92716.0,1.5]
[1735604357266,0.054021,92728.0,92716.0,1.503]
[1735604357468,0.054021,92728.0,92724.0,0.3608]
[1735604357955,0.3608,92736.0,92724.0,0.3608]
[1735604358162,0.054006,92753.0,92735.0,0.3608]
[1735604358360,0.054008,92750.0,92740.0,0.11163145]
[1735604358564,0.054008,92750.0,92736.0,0.0597]
[1735604358760,0.054009,92749.0,92736.0,0.0597]
[1735604358960,0.054013,92742.0,92735.0,0.3608]
[1735604359165,0.50381703,92755.0,92735.0,0.3608]
[1735604359367,0.054009,92749.0,92735.0,0.414816]
[1735604359562,0.054009,92749.0,92736.0,0.0597]
[1735604360673,0.060009,92749.0,92736.0,0.0597]
[1735604361057,0.054009,92749.0,92736.0,0.0597]
[1735604361265,0.054015,92738.0,92736.0,0.009]
[1735604361466,0.3608,92746.0,92736.0,0.009]
[1735604361873,0.3608,92746.0,92737.0,0.0603]
[1735604362068,0.001,92749.0,92737.0,0.0603]
[1735604362268,0.001,92749.0,92745.0,0.3608]
[1735604362675,0.001,92749.0,92747.0,0.054009]
[1735604362975,0.001,92749.0,92745.0,0.3608]
[1735604362976,0.3608,92776.0,92748.0,0.3608]
[1735604363175,0.48452,92781.0,92763.0,0.054]
[1735604363375,0.18147278,92775.0,92771.0,0.3608]
[1735604363578,0.16063524,92775.0,92771.0,0.3608]
[1735604363961,0.48452,92781.0,92771.0,0.3608]
[1735604364180,0.48384,92781.0,92779.0,0.3608]
[1735604364382,0.02067212,92787.0,92779.0,0.3608]
[1735604364570,0.053984,92791.0,92779.0,0.3608]
[1735604364882,0.053985,92790.0,92788.0,0.3608]
[1735604367170,0.053985,92790.0,92779.0,0.3608]
[1735604367171,0.02010809,92798.0,92779.0,0.3608]
[1735604367371,0.05399,92780.0,92779.0,0.3608]
[1735604369775,0.01990195,92781.0,92767.0,0.3608]
[1735604369971,0.053996,92771.0,92767.0,0.3608]
[1735604370577,0.053996,92771.0,92761.0,0.19368842]
[1735604371481,0.053996,92771.0,92767.0,0.001]
[1735604372278,0.053996,92771.0,92767.0,0.002]
[1735604373088,0.053996,92771.0,92767.0,0.001]
[1735604374080,0.053996,92771.0,92767.0,0.002]
[1735604374688,0.07445402,92771.0,92767.0,0.002]
[1735604374981,0.07445402,92771.0,92767.0,0.001]
[1735604375381,0.02045802,92771.0,92767.0,0.001]
[1735604375581,0.0644,92778.0,92769.0,0.3608]
[1735604375787,0.118392,92778.0,92769.0,0.3608]
[1735604376796,0.053993,92777.0,92769.0,0.3608]
[1735604377088,0.053993,92776.0,92769.0,0.3608]
[1735604377291,0.01369263,92779.0,92769.0,0.3608]
[1735604377487,0.01369263,92779.0,92769.0,0.47243145]
[1735604377886,0.053993,92775.0,92769.0,0.47243145]
[1735604378282,0.03382534,92779.0,92769.0,0.3608]
[1735604378486,0.053995,92772.0,92769.0,0.3618]
[1735604379480,0.053995,92772.0,92769.0,0.3638]
[1735604379889,0.053995,92772.0,92769.0,0.3608]
[1735604380191,0.053995,92772.0,92769.0,0.3628]
[1735604382190,0.03382534,92779.0,92769.0,0.3628]
[1735604382191,0.053996,92771.0,92769.0,0.3628]
[1735604382386,0.053996,92771.0,92769.0,0.002]
[1735604382782,0.053996,92771.0,92769.0,0.001]
[1735604383078,0.053997,92769.0,92761.0,0.3608]
[1735604384674,0.39462534,92779.0,92761.0,0.3628]
[1735604384891,0.053997,92768.0,92761.0,0.3628]
[1735604385687,0.053997,92768.0,92761.0,0.3668]
[1735604386192,0.053997,92768.0,92761.0,0.3628]
[1735604386387,0.053997,92768.0,92761.0,0.3668]
[1735604387392,0.07490611,92768.0,92761.0,0.3668]
[1735604387882,0.02090911,92768.0,92765.0,0.053999]
[1735604388088,0.053994,92774.0,92761.0,0.3668]
[1735604388294,0.053994,92774.0,92772.0,0.3608]
[1735604388484,0.053994,92774.0,92773.0,1.5]
[1735604388889,0.053994,92774.0,92772.0,0.3608]
[1735604389793,0.055994,92774.0,92772.0,0.3608]
[1735604391996,0.053994,92774.0,92772.0,0.55548842]
[1735604392793,0.053994,92774.0,92772.0,0.55448842]
[1735604393191,0.053994,92774.0,92772.0,0.3608]
[1735604393589,0.054994,92774.0,92772.0,0.3608]
[1735604395191,0.055994,92774.0,92772.0,0.3608]
[1735604395597,0.053994,92774.0,92772.0,0.3608]
[1735604395799,0.055994,92774.0,92772.0,0.3608]
[1735604396600,0.056994,92774.0,92772.0,0.3608]
[1735604396800,0.053996,92771.0,92770.0,0.61952542]
[1735604397500,0.053996,92771.0,92770.0,0.3608]
[1735604398303,0.053996,92771.0,92763.0,0.32361156]
[1735604398492,0.003,92774.0,92770.0,0.3608]
[1735604398692,0.053996,92771.0,92770.0,0.3608]
[1735604399102,0.054996,92771.0,92770.0,0.3608]
[1735604399401,0.001,92771.0,92764.0,0.32361156]
[1735604399600,0.3608,92770.0,92741.0,0.1874]
[1735604399902,0.054013,92741.0,92740.0,0.40842434]
[1735604400697,0.054013,92741.0,92740.0,0.39577534]
[1735604401008,0.054013,92741.0,92740.0,0.07820034]
[1735604401200,0.054013,92741.0,92740.0,3.4e-07]
[1735604401707,0.054014,92739.0,92738.0,0.19443905]
[1735604402790,0.058014,92739.0,92738.0,0.19443905]
[1735604402996,0.058014,92739.0,92738.0,5e-08]
[1735604403311,0.058014,92739.0,92710.0,0.11163145]
[1735604403312,0.11355406,92739.0,92710.0,0.11163145]
[1735604403501,0.414828,92716.0,92710.0,0.11163145]
[1735604403702,0.054029,92715.0,92710.0,0.11163145]
[1735604404002,0.3608,92716.0,92709.0,0.1281]
[1735604404207,0.054029,92714.0,92709.0,0.1281]
[1735604404811,0.054025,92721.0,92709.0,0.1281]
[1735604405009,0.09665464,92718.0,92715.0,0.3608]
[1735604405313,0.02817286,92724.0,92723.0,0.054023]
[1735604405518,0.16109108,92732.0,92731.0,0.054019]
[1735604405922,0.004,92739.0,92731.0,1.8608]
[1735604406112,0.004,92739.0,92738.0,0.054015]
[1735604406515,0.02079368,92750.0,92731.0,1.8608]
[1735604406710,0.054012,92743.0,92740.0,0.11163145]
[1735604406911,0.054008,92750.0,92741.0,0.054012]
[1735604407417,0.054011,92746.0,92740.0,0.11163145]
[1735604407617,0.3608,92755.0,92733.0,0.054017]
[1735604407618,0.054006,92753.0,92733.0,0.054017]
[1735604407824,0.3608,92755.0,92733.0,0.054017]
[1735604408121,0.3608,92755.0,92741.0,0.002]
[1735604408323,0.3608,92745.0,92741.0,0.002]
[1735604408915,0.054012,92743.0,92741.0,0.002]
[1735604409315,0.054012,92743.0,92741.0,0.009]
[1735604409721,0.054012,92743.0,92741.0,0.007]
[1735604409928,0.0656,92744.0,92733.0,0.005]
[1735604410227,0.054012,92743.0,92741.0,0.005]
[1735604410421,0.118112,92743.0,92741.0,0.005]
[1735604410733,0.054016,92736.0,92726.0,0.3608]
[1735604411023,0.054016,92736.0,92726.0,0.11163145]
[1735604411821,0.054017,92734.0,92726.0,0.11163145]
[1735604412222,0.054017,92734.0,92721.0,0.0614]
[1735604412717,0.3608,92737.0,92720.0,0.11163145]
[1735604412918,0.001,92734.0,92726.0,0.005]
[1735604413625,0.001,92734.0,92721.0,0.005]
[1735604413826,0.001,92734.0,92724.0,0.054023]
[1735604414013,0.001,92734.0,92725.0,0.0648]
[1735604414220,0.001,92734.0,92726.0,0.001]
[1735604414532,0.001,92734.0,92726.0,0.3618]
[1735604414737,0.055017,92734.0,92726.0,0.001]
[1735604414914,0.055017,92734.0,92725.0,0.0648]
[1735604415121,0.054017,92734.0,92725.0,0.0648]
[1735604415320,0.08908006,92743.0,92726.0,0.003]
[1735604415520,0.054014,92740.0,92730.0,0.11163145]
[1735604415716,0.054014,92739.0,92730.0,0.11163145]
[1735604415925,0.054015,92738.0,92730.0,0.11163145]
[1735604416327,0.08908006,92743.0,92726.0,0.003]
[1735604416531,0.054019,92730.0,92726.0,0.004]
[1735604416726,0.3608,92736.0,92726.0,0.004]
[1735604416934,0.054016,92736.0,92726.0,0.004]
[1735604417126,0.054016,92736.0,92730.0,0.001]
[1735604418736,0.054016,92736.0,92726.0,0.004]
[1735604419332,0.054016,92736.0,92730.0,0.001]
[1735604420031,0.054016,92736.0,92726.0,0.003]
[1735604421025,0.054016,92736.0,92730.0,0.001]
[1735604421626,0.02498006,92743.0,92730.0,0.001]
[1735604421825,0.3608,92746.0,92736.0,0.054016]
[1735604422228,0.3608,92753.0,92737.0,1.5]
[1735604422531,0.3608,92753.0,92740.0,0.11163145]
[1735604423035,0.003,92746.0,92740.0,0.11163145]
[1735604423629,0.3658,92753.0,92740.0,0.11163145]
[1735604424025,0.054009,92748.0,92740.0,0.11163145]
[1735604424433,0.002,92746.0,92740.0,0.11163145]
[1735604425137,0.054013,92742.0,92734.0,0.3608]
[1735604425321,0.3608,92745.0,92734.0,0.3608]
[1735604425521,0.3608,92745.0,92739.0,0.054014]
[1735604425725,0.007,92746.0,92744.0,0.414811]
[1735604425926,0.005,92746.0,92744.0,0.414811]
[1735604426332,0.002,92748.0,92747.0,0.05401]
[1735604426636,0.3608,92753.0,92744.0,0.3608]
[1735604426829,0.3608,92753.0,92752.0,0.054007]
[1735604427732,0.3608,92753.0,92745.0,0.05401]
[1735604428237,0.006,92746.0,92745.0,0.05401]
[1735604428736,0.3698,92753.0,92752.0,0.001]
[1735604429438,0.3668,92753.0,92745.0,0.05501]
[1735604429640,0.3668,92753.0,92745.0,0.001]
[1735604429835,0.3668,92753.0,92746.0,0.05401]
[1735604430432,0.3708,92753.0,92749.0,0.054008]
[1735604431145,0.3738,92753.0,92752.0,0.001]
[1735604431338,0.3728,92753.0,92752.0,0.001]
[1735604431756,0.3718,92753.0,92749.0,0.055008]
[1735604432440,0.3728,92753.0,92752.0,0.001]
[1735604432941,0.3718,92753.0,92749.0,0.055008]
[1735604433242,0.3718,92753.0,92749.0,0.001]
[1735604433445,0.054007,92751.0,92749.0,0.001]
[1735604434547,0.0628,92752.0,92744.0,0.3608]
[1735604434846,0.05401,92747.0,92740.0,0.37088352]
[1735604435039,0.1229,92746.0,92740.0,0.11163145]
[1735604435246,0.1229,92746.0,92734.0,0.054017]
[1735604435645,0.17691,92746.0,92734.0,0.054017]
[1735604435849,0.011,92751.0,92734.0,0.3608]
[1735604436046,0.003,92751.0,92747.0,0.054009]
[1735604436440,0.003,92751.0,92748.0,0.054009]
[1735604436643,0.003,92751.0,92749.0,0.054008]
[1735604437038,0.19383745,92762.0,92761.0,0.054001]
[1735604437644,0.16160002,92772.0,92770.0,0.053996]
[1735604437951,0.16160002,92772.0,92771.0,1.5]
[1735604438955,0.17060002,92772.0,92771.0,1.5]
[1735604439153,0.009,92772.0,92771.0,1.5]
[1735604439548,0.009,92772.0,92771.0,1.501]
[1735604439749,0.012,92772.0,92771.0,1.501]
[1735604440454,0.009,92772.0,92771.0,0.001]
[1735604440645,0.012,92772.0,92771.0,0.001]
[1735604443155,0.012,92772.0,92771.0,0.0635]
[1735604443451,0.3608,92788.0,92771.0,0.0635]
[1735604443641,0.3608,92788.0,92786.0,0.053987]
[1735604443841,0.16160002,92795.0,92782.0,0.3608]
[1735604444052,0.16160002,92795.0,92791.0,0.053983]
[1735604445054,0.3608,92798.0,92791.0,0.053983]
[1735604445252,0.1204,92799.0,92791.0,0.053983]
[1735604445653,0.009,92795.0,92791.0,0.054983]
[1735604446151,0.3608,92797.0,92785.0,0.11163145]
[1735604446454,0.053982,92795.0,92791.0,0.001]
[1735604446650,0.053983,92794.0,92791.0,0.001]
[1735604447059,0.053983,92793.0,92791.0,0.001]
[1735604447258,0.05399,92781.0,92770.0,0.37088352]
[1735604447443,0.1198,92780.0,92770.0,0.25925207]
[1735604447647,0.1198,92780.0,92770.0,0.37088352]
[1735604448260,0.1198,92780.0,92761.0,0.3608]
[1735604448261,0.053995,92773.0,92761.0,0.3608]
[1735604448649,0.1198,92780.0,92761.0,0.3608]
[1735604448650,0.1248,92780.0,92761.0,0.3608]
[1735604448856,0.053996,92771.0,92761.0,0.3608]
[1735604449156,0.053993,92776.0,92762.0,0.054001]
[1735604449459,0.053993,92775.0,92762.0,0.054001]
[1735604449661,0.001,92773.0,92762.0,0.054001]
[1735604450560,0.0596,92772.0,92762.0,0.054001]
[1735604452160,0.0616,92772.0,92762.0,0.054001]
[1735604453863,0.115595,92772.0,92762.0,0.054001]
[1735604454158,0.053996,92771.0,92762.0,0.054001]
[1735604455352,0.0616,92772.0,92762.0,0.054001]
[1735604455558,0.053996,92770.0,92762.0,0.054001]
[1735604458059,0.055996,92770.0,92762.0,0.054001]
[1735604458363,0.055996,92770.0,92762.0,0.056001]
[1735604458558,0.0596,92772.0,92762.0,0.007]
[1735604458765,0.0596,92772.0,92766.0,0.053998]
[1735604460667,0.0596,92772.0,92766.0,0.055998]
[1735604462165,0.0596,92772.0,92766.0,0.053998]
[1735604462369,0.0596,92772.0,92766.0,0.057998]
[1735604463068,0.053998,92767.0,92758.0,0.25925207]
[1735604463256,0.3608,92759.0,92741.0,0.054013]
[1735604463572,0.414808,92750.0,92736.0,0.3608]
[1735604463766,0.3608,92750.0,92742.0,0.054012]
[1735604464064,0.054008,92749.0,92740.0,0.11163145]
[1735604464267,0.054008,92749.0,92740.0,0.16564445]
[1735604464468,0.3608,92750.0,92740.0,0.11163145]
[1735604464770,0.3608,92750.0,92741.0,0.054013]
[1735604464771,0.414808,92750.0,92741.0,0.054013]
[1735604464974,0.3608,92750.0,92742.0,0.054012]
[1735604465175,0.3608,92750.0,92740.0,0.11163145]
[1735604465362,0.3608,92750.0,92746.0,0.05401]
[1735604466267,0.3618,92750.0,92741.0,0.003]
[1735604466468,0.3618,92750.0,92748.0,0.054009]
[1735604467065,0.12926258,92756.0,92755.0,0.054005]
[1735604467263,0.12926258,92756.0,92746.0,0.005]
[1735604467264,0.12926258,92759.0,92747.0,0.1269]
[1735604467463,0.12926258,92759.0,92757.0,0.054003]
[1735604467774,0.12926258,92759.0,92758.0,1.5]
[1735604468671,0.02597008,92764.0,92758.0,1.5]
[1735604468874,0.12926258,92767.0,92758.0,1.554003]
[1735604469372,0.002,92759.0,92758.0,1.554003]
[1735604470073,0.49006258,92768.0,92758.0,1.559003]
[1735604470270,0.49006258,92768.0,92758.0,1.562003]
[1735604470671,0.49006258,92768.0,92758.0,1.508]
[1735604470973,0.49006258,92768.0,92766.0,0.053998]
[1735604471167,0.3608,92768.0,92766.0,0.053998]
[1735604472874,0.3608,92768.0,92766.0,0.054998]
[1735604474970,0.12926258,92774.0,92772.0,0.053995]
[1735604475473,0.12926258,92774.0,92766.0,0.001]
[1735604475673,0.12926258,92774.0,92767.0,0.053998]
[1735604475873,0.12926258,92776.0,92767.0,0.053998]
[1735604476376,0.003,92774.0,92767.0,0.053998]
[1735604476777,0.12926258,92776.0,92767.0,0.053998]
[1735604476967,0.001,92774.0,92767.0,0.053998]
[1735604477167,0.053997,92769.0,92766.0,0.001]
[1735604477476,0.053998,92768.0,92766.0,0.001]
[1735604477668,0.176198,92768.0,92766.0,0.001]
[1735604477868,0.237698,92768.0,92766.0,0.001]
[1735604478378,0.054001,92762.0,92757.0,0.3230222]
[1735604478972,0.054001,92762.0,92748.0,0.054009]
[1735604479379,0.054001,92762.0,92746.0,0.3230222]
[1735604479380,0.054001,92762.0,92750.0,0.11163145]
[1735604479687,0.054001,92762.0,92757.0,0.004]
[1735604480176,0.054001,92762.0,92757.0,0.001]
[1735604480373,0.1837,92768.0,92757.0,0.001]
[1735604480374,0.12939113,92761.0,92757.0,0.001]
[1735604480579,0.18339313,92761.0,92757.0,0.001]
[1735604481477,0.3608,92758.0,92755.0,0.002]
[1735604481684,0.3608,92758.0,92757.0,0.001]
[1735604482382,0.414803,92758.0,92757.0,0.001]
[1735604483180,0.054005,92755.0,92744.0,0.3608]
[1735604483384,0.3608,92750.0,92742.0,1.554572]
[1735604483684,0.3608,92750.0,92742.0,1.554012]
[1735604484371,0.054013,92742.0,92739.0,0.3230222]
[1735604484571,0.054013,92742.0,92734.0,0.3230222]
[1735604485482,0.054013,92742.0,92739.0,0.002]
[1735604485875,0.1201,92749.0,92739.0,0.002]
[1735604486184,0.1201,92749.0,92739.0,0.11163145]